{"text_format":"2","workbook":"xlsx","n_sheets":1,"sheets":["Munka1"],"not_rendered":{"charts":0,"images":0,"macros":0,"external_links":0,"defined_names":0,"comments":0,"pivot_tables":0},"unopened":[],"bounds":{"document_bytes":16777216,"sheet_cells":100000,"run_cost":"one","rows_first":2000,"rows_last":500,"rows_between":2000,"halvings":0,"cell_chars":16384,"cell_head_chars":4096},"cells_cut":0,"cells_raw":0,"read":"whole","date_system":"1900"}

{"sheet":"Munka1","index":0,"n_rows":32,"n_cols":7,"rows_kept":32,"cut":false,"hidden":false,"merged":[[14,5,14,6],[15,5,15,6],[16,0,16,6],[0,0,0,6],[1,0,1,6],[9,5,9,6],[13,5,13,6],[2,0,2,6],[5,5,5,6],[6,5,6,6],[7,5,7,6],[8,5,8,6]]}
["SZEGEDI TUDOMÁNYEGYETEM"]
[]
[]
[{"$nulls":5},"Kelt:"]
[]
["Szegedi Tudományegyetem                ",{"$nulls":4},"Készítette:"]
["Műszaki Igazgatóság                    ",{"$nulls":4},"Cégnév"]
["Műszaki Üzemeltetési Részleg         ",{"$nulls":4},"Székhely"]
["6725 Szeged, Tisza Lajos krt. 107.     ",{"$nulls":4},"Kapcsolattartó"]
["                                       ",{"$nulls":4},"Elérhetőség"]
["                                       ",{"$nulls":4},"                                       "]
["A munka leírása:                       ",{"$nulls":4},"                                       "]
["Domaszék Irattár épület padlásterének átalakítása"]
[]
["                                                                              "]
[]
["Költségvetés főösszesítő"]
[null,"Menny.","Mértéke.","Anyag díj","Munka díj","Anyag össz.","Munkadíj Össz."]
["meglévő lámpatestek leszerelése depónálás padlástérben (elszállítás nélkül)",7,"db",0,0,{"$f":"B19*D19","v":0},{"$f":"B19*E19","v":0}]
["3×1,5 MBCU kábel",300,"m",0,0,{"$f":"B20*D20","v":0},{"$f":"B20*E20","v":0}]
["OBO A6 kötődoboz",45,"db",0,0,{"$f":"B21*D21","v":0},{"$f":"B21*E21","v":0}]
["MÜ 2-es Műanyag cső",250,"m",0,0,0,0]
["Műanyag csőhöz rögzítőbilincs",1000,"db",0,0,0,0]
["OMNIA tip.  150 cm lámpa (hidegfehér)",50,"db",0,0,0,0]
["CD fém vázszerkezetre szerelt gipszkarton  csavarfejek és illesztések glettelve, bandázsolva  1 rtg. tűzgátló  12,5 mm vtg. gipszkarton borítással, egyszeres, CD 60-as profillal tartóvázzal RIGIPS tűzgátló építőlemez RF 12,5 mm",800,"m2",0,0,0,0]
["Tűzállósági (teljesítmény) nyilatkozat, ami tartalmazza a gipszkarton rendszer AK kockázati osztályba sorolását, és megfelel a 15 perc tűzzálósági fokozatnak",1,"klt.",0,0,0,0]
["üzembehelyezési nyilatkozat, beépített anyagokról teljesítmény nyilatkozatok, FMV nyilatkozat",1,"klt.",0,0,{"$f":"B27*D27","v":0},{"$f":"B27*E27","v":0}]
["megvalósulási terv (\"D\"terv, egyvonalas elektromos tervrajzzal) elektromos anyagokról műbizonylat, villamosfelülvizsgálati jegyzőkönyv",1,"klt.",0,0,0,0]
["3/20 fogópár pótlás (2pár) 4 db felszerelése csavaros kötéssel",25,"fm",0,0,{"$f":"B29*D29","v":0},{"$f":"B29*E29","v":0}]
["12/12 fa oszlop (4 db) födémhez, szarufához rögzítve ",8,"fm",0,0,0,0]
[{"$nulls":4},"Összesen nettó",{"$f":"SUM(F19:G30)","v":0}]
[{"$nulls":4},"Összesen br.",{"$f":"F31*1.27","v":0}]